bitfinex/quotes_SOLUSD_20250901
["timestamp","ask_amount","ask_price","bid_price","bid_amount"]
[1756765033063,0.03,195.4,195.39,59.88888541]
[1756765033457,0.03,195.4,195.39,65.00685459]
[1756765034151,0.03,195.4,195.39,124.00685459]
[1756765034465,0.03,195.4,195.39,126.05787359]
[1756765037077,0.03,195.4,195.39,122.26458219]
[1756765037271,0.03,195.4,195.39,126.05787359]
[1756765038777,0.03,195.4,195.39,57.42661301]
[1756765038983,0.03,195.4,195.39,58.12661301]
[1756765039475,0.03,195.4,195.39,63.24458219]
[1756765041992,0.03,195.4,195.39,57.42661301]
[1756765042661,0.03,195.4,195.39,62.54458219]
[1756765043860,0.03,195.4,195.39,55.37559401]
[1756765044466,0.74,195.4,195.39,13.59559401]
[1756765044669,0.74,195.4,195.39,55.35559401]
[1756765044869,0.74,195.4,195.36,2.051545]
[1756765045066,0.71,195.39,195.37,41.76]
[1756765045266,0.03,195.4,195.37,41.76]
[1756765045482,0.71,195.39,195.37,41.76]
[1756765045663,0.71,195.38,195.37,41.76]
[1756765045869,5.82823113,195.38,195.37,41.76]
[1756765046078,9.23667198,195.38,195.37,41.76]
[1756765046588,3.40844085,195.38,195.37,60.47408712]
[1756765046787,0.03,195.4,195.38,13.59559401]
[1756765046993,0.03,195.4,195.39,55.35559401]
[1756765047982,0.03,195.4,195.39,60.47356319]
[1756765048385,0.03,195.4,195.39,55.35559401]
[1756765050877,0.03,195.4,195.39,13.59559401]
[1756765051072,26.0,195.39,195.32,15.64756001]
[1756765051295,3.42856649,195.38,195.34,13.59559401]
[1756765051602,4.13856649,195.38,195.36,13.59559401]
[1756765051788,0.71,195.38,195.37,41.76]
[1756765053183,3.45958323,195.4,195.38,13.59559401]
[1756765053386,0.03,195.4,195.39,55.35559401]
[1756765054794,0.74,195.4,195.39,55.35559401]
[1756765055608,0.74,195.4,195.39,13.59559401]
[1756765055780,0.74,195.4,195.39,55.35559401]
[1756765056481,0.74,195.4,195.39,41.74]
[1756765056679,0.74,195.4,195.36,13.59559401]
[1756765056880,0.69,195.39,195.37,41.74]
[1756765057107,0.69,195.38,195.37,55.33559401]
[1756765057976,3.42958323,195.39,195.37,41.74]
[1756765058206,0.69,195.38,195.37,41.74]
[1756765058792,4.11958323,195.38,195.37,41.74]
[1756765059017,9.23781436,195.38,195.37,41.74]
[1756765060211,9.23781436,195.38,195.34,13.59559401]
[1756765060212,9.23781436,195.38,195.32,5.147829]
[1756765060391,4.11958323,195.37,195.33,41.74]
[1756765060591,0.69,195.36,195.34,41.74]
[1756765060907,0.69,195.35,195.34,41.74]
[1756765062906,9.23860037,195.35,195.34,41.74]
[1756765063210,9.23860037,195.35,195.29,13.71559401]
[1756765063402,4.11958323,195.34,195.31,13.59559401]
[1756765063916,0.69,195.33,195.29,0.12]
[1756765064105,4.11958323,195.33,195.29,0.12]
[1756765064402,3.42958323,195.32,195.29,0.12]
[1756765064606,9.23926427,195.33,195.29,0.12]
[1756765064791,3.42958323,195.32,195.29,0.12]
[1756765065197,0.69,195.31,195.29,0.12]
[1756765066591,9.23333482,195.31,195.29,0.12]
[1756765066798,3.4232241,195.3,195.29,0.12]
[1756765066997,0.69,195.35,195.29,13.71559401]
[1756765067213,5.11906731,195.35,195.3,55.33559401]
[1756765067516,4.1130573,195.34,195.3,55.33559401]
[1756765067693,0.69,195.33,195.3,55.33559401]
[1756765068508,3.4230573,195.34,195.3,55.33559401]
[1756765068690,0.69,195.33,195.3,55.33559401]
[1756765068890,0.69,195.32,195.3,55.33559401]
[1756765069300,0.69,195.32,195.3,41.74]
[1756765069507,0.69,195.35,195.3,41.74]
[1756765069703,0.69,195.34,195.3,41.74]
[1756765069907,0.69,195.33,195.3,41.74]
[1756765070701,8.53947803,195.34,195.3,41.74]
[1756765070901,0.69,195.32,195.3,41.74]
[1756765072223,29.41946187,195.34,195.3,41.74]
[1756765072396,4.10946187,195.33,195.3,41.74]
[1756765072597,9.22912442,195.33,195.29,41.84]
[1756765072797,5.80966255,195.33,195.29,41.84]
[1756765072993,0.69,195.32,195.29,41.84]
[1756765073601,0.69,195.36,195.3,14.29559401]
[1756765073802,0.69,195.35,195.29,41.84]
[1756765074125,0.69,195.34,195.29,41.84]
[1756765074426,0.69,195.33,195.29,41.84]
[1756765075021,5.11875511,195.36,195.29,41.84]
[1756765075226,0.69,195.35,195.29,41.84]
[1756765076123,0.69,195.34,195.29,41.84]
[1756765076709,0.69,195.34,195.29,42.54]
[1756765077230,5.8094393,195.34,195.29,42.54]
[1756765077615,0.69,195.33,195.29,41.84]
[1756765078416,0.69,195.32,195.29,41.84]
[1756765078738,0.69,195.31,195.29,0.12]
[1756765079320,5.81018754,195.31,195.29,0.12]
[1756765079512,5.12018754,195.31,195.29,0.12]
[1756765079717,5.80973535,195.33,195.29,0.12]
[1756765079926,0.69,195.32,195.29,0.12]
[1756765080506,5.11973535,195.33,195.29,0.12]
[1756765080507,8.53483121,195.33,195.29,0.12]
[1756765080704,0.69,195.32,195.29,0.12]
[1756765081205,5.11973535,195.33,195.29,0.12]
[1756765081531,0.69,195.33,195.29,0.12]
[1756765081910,0.69,195.32,195.29,0.12]
[1756765082319,0.69,195.31,195.29,0.12]
[1756765082630,0.69,195.3,195.29,0.12]
[1756765083416,0.69,195.32,195.29,0.12]
[1756765083997,0.69,195.31,195.29,0.12]
[1756765085316,3.41765337,195.32,195.29,0.12]
[1756765085317,31.8003277,195.3,195.29,0.12]
[1756765085727,133.8,195.32,195.29,0.12]
[1756765087607,0.68,195.31,195.29,0.12]
[1756765087811,0.68,195.3,195.29,0.12]
[1756765089101,0.68,195.3,195.27,0.12]
[1756765089325,4.10139145,195.3,195.27,0.12]
[1756765089515,4.10139145,195.3,195.25,0.12]
[1756765089516,17.92206461,195.29,195.25,0.12]
[1756765089714,3.42139145,195.28,195.25,0.12]
[1756765089925,41.68,195.27,195.25,0.12]
[1756765090120,3.42139145,195.26,195.25,0.12]
[1756765090438,4.10139145,195.26,195.25,0.12]
[1756765090835,45.78139145,195.26,195.25,0.12]
[1756765091734,50.90276807,195.26,195.25,0.12]
[1756765092634,50.90276807,195.26,195.25,1e-08]
[1756765093022,35.22276807,195.26,195.25,1e-08]
[1756765093221,50.90276807,195.26,195.25,1e-08]
[1756765093431,50.90276807,195.26,195.2,0.12]
[1756765093432,26.0,195.23,195.2,0.12]
[1756765093618,5.12268838,195.21,195.2,0.12]
[1756765093939,8.54407983,195.21,195.2,0.12]
[1756765094130,9.22407983,195.21,195.2,0.12]
[1756765094333,50.90407983,195.21,195.2,0.12]
[1756765095140,50.90407983,195.21,195.2,1e-08]
[1756765095520,55.17322798,195.21,195.2,1e-08]
[1756765096242,50.90407983,195.21,195.2,1e-08]
[1756765096438,68.76882199,195.21,195.2,1e-08]
[1756765096947,55.17322798,195.21,195.2,1e-08]
[1756765097112,50.90407983,195.21,195.2,1e-08]
[1756765097316,55.17322798,195.21,195.2,1e-08]
[1756765097533,50.90407983,195.21,195.2,1e-08]
[1756765098523,3.42139145,195.21,195.2,1e-08]
[1756765098857,0.68,195.23,195.2,1e-08]
[1756765099034,0.68,195.24,195.2,1e-08]
[1756765099223,41.68,195.22,195.2,1e-08]
[1756765099424,67.68,195.22,195.2,1e-08]
[1756765099848,26.0,195.22,195.2,1e-08]
[1756765100057,4.26914815,195.28,195.21,0.67]
[1756765100058,5.12111435,195.27,195.21,0.67]
[1756765100222,3.40278893,195.26,195.21,0.67]
[1756765100422,26.0,195.24,195.21,0.67]
[1756765100622,26.0,195.23,195.22,0.67]
[1756765101023,41.68,195.24,195.22,0.67]
[1756765101259,41.68,195.24,195.2,0.67000001]
[1756765101455,26.0,195.26,195.21,0.67]
[1756765101658,0.03,195.32,195.22,13.59559401]
[1756765101825,0.03,195.32,195.25,3.7932914]
[1756765102024,0.03,195.32,195.24,17.38888541]
[1756765102325,5.14985155,195.32,195.25,9.58493032]
[1756765102539,3.40536263,195.31,195.26,0.67]
[1756765103040,26.0,195.31,195.26,0.67]
[1756765103232,0.03,195.32,195.27,0.67]
[1756765103433,0.03,195.32,195.21,18.71828239]
[1756765103633,68.88,195.31,195.25,13.59559401]
[1756765103852,3.40705634,195.3,195.25,13.59559401]
[1756765104038,3.40705634,195.3,195.22,6.05351195]
[1756765104240,3.40705634,195.3,195.25,0.67]
[1756765104425,8.52761677,195.3,195.25,0.67]
[1756765104625,3.40705634,195.29,195.25,0.67]
[1756765105030,3.40705634,195.29,195.26,0.67]
[1756765105247,3.40705634,195.29,195.27,0.67]
[1756765105447,3.40705634,195.3,195.28,0.67]
[1756765105644,26.0,195.29,195.28,0.67]
[1756765105831,29.40705634,195.29,195.23,6.05351195]
[1756765106038,26.0,195.29,195.26,0.67]
[1756765107061,31.12037501,195.3,195.26,0.67]
[1756765107223,3.40970958,195.29,195.26,0.67]
[1756765107742,3.40970958,195.29,195.25,13.59559401]
[1756765108048,3.43970958,195.29,195.25,13.59559401]
[1756765108231,3.43970958,195.29,195.22,11.17582113]
[1756765108432,3.43970958,195.29,195.24,13.59559401]
[1756765108641,3.43970958,195.29,195.25,0.67]
[1756765108841,3.43970958,195.29,195.26,0.67]
[1756765109050,26.0,195.28,195.27,0.67]
[1756765110150,26.0,195.28,195.26,0.67]
[1756765110549,26.0,195.28,195.22,0.67]
[1756765110754,4.09061454,195.27,195.22,0.67]
[1756765110961,9.21191193,195.27,195.23,0.67]
[1756765111160,5.12129739,195.27,195.21,19.64910596]
[1756765111463,5.12129739,195.27,195.24,0.67]
[1756765112039,0.03,195.29,195.26,19.64910596]
[1756765112234,0.03,195.29,195.27,6.05351195]
[1756765112439,0.03,195.29,195.27,6.72351195]
[1756765112735,0.03,195.29,195.28,0.67]
[1756765116968,0.03,195.29,195.28,20.31910596]
[1756765117472,0.03,195.29,195.28,19.38644611]
[1756765117852,0.03,195.29,195.28,14.26559401]
[1756765120873,0.03,195.29,195.28,13.59559401]
[1756765126178,0.03,195.29,195.28,14.30559401]
[1756765127184,0.03,195.29,195.28,13.59559401]
[1756765130184,0.03,195.29,195.28,14.30559401]
[1756765131363,0.03,195.29,195.28,13.59559401]
[1756765131960,0.03,195.29,195.24,5.12190124]
[1756765131961,0.72,195.29,195.24,5.12190124]
[1756765132166,0.03,195.29,195.25,13.59559401]
[1756765132389,0.69,195.28,195.24,13.59559401]
[1756765134095,5.81091139,195.28,195.24,13.59559401]
[1756765134387,0.69,195.27,195.22,13.59559401]
[1756765134689,0.69,195.27,195.23,0.71]
[1756765135887,5.81120104,195.27,195.23,0.71]
[1756765136766,0.03,195.29,195.22,18.71650601]
[1756765136995,26.0,195.28,195.24,13.59559401]
[1756765137169,26.0,195.28,195.25,0.71]
[1756765137495,0.03,195.29,195.28,13.59559401]
[1756765137794,0.03,195.29,195.26,39.595594]
[1756765137990,0.03,195.29,195.28,8.90312296]
[1756765139599,0.03,195.29,195.28,5.1208521]
[1756765139770,0.03,195.29,195.28,8.90312296]
[1756765140599,0.03,195.29,195.27,77.71668404]
[1756765140964,0.03,195.29,195.27,81.4989549]
[1756765141165,0.03,195.29,195.27,77.71668404]
[1756765141365,0.03,195.29,195.28,3.78227086]
[1756765141895,0.03,195.29,195.28,8.90312296]
[1756765142211,0.72,195.29,195.27,72.59559401]
[1756765142364,0.72,195.29,195.27,13.59559401]
[1756765142800,0.03,195.29,195.27,13.59559401]
[1756765143684,0.69,195.28,195.27,13.59559401]
[1756765144086,0.69,195.28,195.24,2.052914]
[1756765144295,0.69,195.27,195.24,2.052914]
[1756765144476,0.69,195.26,195.23,13.59559401]
[1756765144670,0.69,195.25,195.23,13.59559401]
[1756765144870,0.68,195.24,195.23,13.59559401]
[1756765145178,0.68,195.24,195.22,42.12]
[1756765145404,0.68,195.23,195.2,13.59559402]
[1756765145697,30.26914815,195.28,195.2,13.59559402]
[1756765145698,0.68,195.22,195.2,13.59559402]
[1756765146772,0.68,195.21,195.2,1e-08]
[1756765147103,26.68,195.21,195.2,1e-08]
[1756765147270,30.111831,195.21,195.2,1e-08]
[1756765149580,4.111831,195.21,195.2,1e-08]
[1756765149785,0.68,195.21,195.2,1e-08]
[1756765150000,3.431831,195.23,195.2,1e-08]
[1756765150381,68.36,195.28,195.2,1e-08]
[1756765150382,4.111831,195.26,195.2,1e-08]
[1756765150695,4.111831,195.26,195.21,13.59559401]
[1756765150696,3.42777512,195.25,195.21,13.59559401]
[1756765151178,0.68,195.26,195.21,13.59559401]
[1756765151599,0.68,195.25,195.21,13.59559401]
[1756765151905,0.68,195.24,195.21,13.59559401]
[1756765152198,0.68,195.26,195.21,13.59559401]
[1756765152709,0.68,195.25,195.21,18.71806353]
[1756765154102,0.68,195.25,195.23,13.59559401]
[1756765154600,3.42772082,195.27,195.23,13.59559401]
[1756765154794,0.68,195.25,195.23,13.59559401]
[1756765155610,0.68,195.25,195.24,5.120856]
[1756765155984,3.42772082,195.27,195.24,5.120856]
[1756765156184,0.68,195.26,195.24,5.120856]
[1756765156805,5.15060694,195.29,195.24,5.120856]
[1756765156806,0.03,195.29,195.25,13.59559401]
[1756765157281,3.45858933,195.29,195.25,13.59559401]
[1756765157602,0.03,195.29,195.27,13.59559401]
[1756765158212,0.03,195.29,195.28,13.595594]
[1756765160789,0.71,195.29,195.28,13.595594]
[1756765161184,0.03,195.29,195.28,13.595594]
[1756765161917,0.71,195.29,195.28,13.595594]
[1756765162699,0.03,195.29,195.28,18.7164461]
[1756765162914,0.03,195.29,195.28,36.09431097]
[1756765165613,0.03,195.31,195.3,39.59559401]
[1756765165926,1e-08,195.32,195.31,13.59559401]
[1756765166414,1e-08,195.32,195.31,76.37786487]
[1756765166612,1e-08,195.32,195.31,81.39340544]
[1756765167188,0.03,195.34,195.31,81.39340544]
[1756765167389,1e-08,195.34,195.33,48.49740615]
[1756765167608,1e-08,195.34,195.33,91.01740615]
[1756765168199,1e-08,195.34,195.33,87.23513529]
[1756765168387,1e-08,195.34,195.33,91.01740615]
[1756765168996,1e-08,195.34,195.33,93.06895115]
[1756765173401,1e-08,195.34,195.33,152.06895115]
[1756765177713,1e-08,195.36,195.34,13.59559401]
[1756765177913,1e-08,195.36,195.35,60.22976658]
[1756765178331,1e-08,195.36,195.35,62.28110158]
[1756765178645,1e-08,195.43,195.37,26.0]
[1756765178807,1e-08,195.43,195.42,43.37786487]
[1756765179007,1e-08,195.44,195.43,13.59559401]
[1756765179210,1e-08,195.44,195.43,17.37786487]
[1756765179430,1e-08,195.44,195.43,18.71251566]
[1756765179631,1e-08,195.44,195.43,22.49478652]
[1756765179817,1e-08,195.44,195.43,24.54507052]
[1756765180444,1e-08,195.45,195.43,24.54507052]
[1756765180618,1e-08,195.45,195.44,86.13786487]
[1756765180948,1e-08,195.45,195.44,145.13786487]
[1756765182142,1e-08,195.45,195.44,150.25452471]
[1756765183909,1e-08,195.45,195.44,146.47225385]
[1756765184136,1e-08,195.45,195.44,150.15452471]
[1756765184918,1e-08,195.45,195.44,107.49452471]
[1756765185120,1e-08,195.45,195.44,150.55452471]
[1756765187927,1e-08,195.45,195.44,124.55452471]
[1756765188159,0.67,195.52,195.48,39.59559401]
[1756765188456,0.67,195.51,195.5,13.59559401]
[1756765188835,0.67,195.51,195.5,26.37494901]
[1756765189224,0.67,195.51,195.5,31.49003852]
[1756765189721,0.67,195.51,195.5,35.27230938]
[1756765191964,0.1,195.54,195.5,51.84230402]
[1756765192176,0.77,195.54,195.53,17.37786487]
[1756765192360,0.77,195.54,195.53,60.61786487]
[1756765192655,0.77,195.54,195.53,75.99104987]
[1756765193248,0.77,195.54,195.53,77.32308372]
[1756765193453,0.77,195.54,195.53,81.10535458]
[1756765193940,0.1,195.54,195.53,81.10535458]
[1756765196229,0.1,195.54,195.53,77.32308372]
[1756765196528,0.1,195.54,195.53,81.10535458]
[1756765197138,0.1,195.54,195.53,77.32308372]
[1756765197333,0.1,195.54,195.53,81.10535458]
[1756765197740,0.03,195.56,195.55,26.0]
[1756765197941,0.03,195.56,195.55,86.67786487]
[1756765198559,0.03,195.58,195.56,13.59559401]
[1756765198734,0.03,195.58,195.57,86.63786487]
[1756765199036,0.03,195.58,195.57,86.61786487]
[1756765199241,0.03,195.58,195.57,91.73112354]
[1756765199431,159.8,195.71,195.58,13.59559401]
[1756765199632,0.67,195.7,195.63,13.59559401]
[1756765199833,0.67,195.69,195.64,43.24]
[1756765200167,0.67,195.68,195.64,43.24]
[1756765200347,0.67,195.67,195.64,43.24]
[1756765200546,0.67,195.66,195.64,43.24]
[1756765200748,0.67,195.65,195.64,56.83559401]
[1756765201780,0.67,195.66,195.65,13.59559401]
[1756765201948,1.15145466,195.72,195.65,17.37786487]
[1756765202280,0.67,195.71,195.7,13.59559401]
[1756765202438,0.67,195.71,195.7,56.77559401]
[1756765203180,0.67,195.71,195.7,13.59559401]
[1756765203353,0.67,195.71,195.7,56.77559401]
[1756765203548,0.67,195.71,195.7,13.59559401]
[1756765203912,0.67,195.71,195.7,56.75559401]
[1756765204051,0.67,195.71,195.7,43.14]
[1756765205268,0.67,195.71,195.64,5.11141105]
[1756765205474,0.69,195.7,195.67,13.59559401]
[1756765205671,0.69,195.69,195.68,13.59559401]
[1756765205836,0.69,195.69,195.68,56.69559401]
[1756765208078,0.69,195.69,195.67,43.02]
[1756765208263,1.17145466,195.72,195.69,13.59559401]
[1756765208462,1.17145466,195.72,195.68,43.02]
[1756765208463,1.17145466,195.72,195.7,46.84227086]
[1756765208763,0.48145466,195.72,195.71,56.65559401]
[1756765208959,0.48145466,195.72,195.71,60.45786487]
[1756765209485,0.48145466,195.72,195.71,61.78519495]
[1756765209683,0.48145466,195.72,195.71,65.56746581]
[1756765211882,0.48145466,195.72,195.71,120.78519495]
[1756765212083,1.17145466,195.72,195.71,115.65559401]
[1756765212268,1.17145466,195.72,195.71,13.59559401]
[1756765212468,1.17145466,195.72,195.71,43.08]
[1756765212769,0.03,195.71,195.7,56.69559401]
[1756765212965,0.72,195.71,195.7,56.69559401]
[1756765213486,5.82963444,195.71,195.68,56.65559401]
[1756765213683,0.69,195.7,195.68,56.65559401]
[1756765213858,0.69,195.69,195.68,56.65559401]
[1756765214457,0.03,195.71,195.68,60.43786487]
[1756765214662,0.03,195.71,195.68,46.84227086]
[1756765214890,0.03,195.71,195.7,3.78227086]
[1756765215088,0.03,195.71,195.7,60.61786487]
[1756765215299,0.03,195.71,195.7,56.83559401]
[1756765215485,0.03,195.71,195.7,61.94545604]
[1756765215686,0.03,195.71,195.7,65.7277269]
[1756765215997,0.03,195.71,195.7,65.7877269]
[1756765216586,0.03,195.71,195.7,60.67786487]
[1756765216787,0.03,195.71,195.7,65.7877269]
[1756765216991,0.03,195.71,195.7,22.4877269]
[1756765217696,0.03,195.71,195.7,65.7877269]
[1756765218113,0.03,195.71,195.7,62.00545604]
[1756765218304,0.03,195.71,195.7,65.7877269]
[1756765218977,0.03,195.71,195.7,70.08098396]
[1756765220394,0.03,195.71,195.7,72.12864296]
[1756765221088,0.03,195.71,195.7,127.4063721]
[1756765221277,0.03,195.71,195.7,126.8953859]
[1756765221921,0.03,195.71,195.7,67.8953859]
[1756765222131,0.03,195.71,195.7,71.67765676]
[1756765222284,0.03,195.71,195.7,28.82864296]
[1756765222615,0.03,195.71,195.7,68.3663721]
[1756765223621,0.03,195.71,195.7,64.58410124]
[1756765223824,0.03,195.71,195.7,68.3663721]
[1756765224618,0.72,195.71,195.7,20.75311504]
[1756765224806,0.72,195.71,195.7,67.7753859]
[1756765225012,0.48145466,195.75,195.7,67.7753859]
[1756765225013,0.69,195.88,195.7,109.881622]
[1756765225212,0.48145466,195.89,195.78,3.78227086]
[1756765225413,0.69,195.87,195.78,62.85786487]
[1756765225740,1e-08,195.79,195.78,62.85786487]
[1756765226107,1e-08,195.79,195.78,67.9656389]
[1756765226402,1e-08,195.79,195.78,64.26336804]
[1756765226600,1e-08,195.79,195.78,68.0456389]
[1756765227022,0.69000001,195.79,195.78,94.0456389]
[1756765227222,0.69000001,195.79,195.78,85.15559401]
[1756765227938,0.69000001,195.79,195.78,59.15559401]
[1756765228143,0.69000001,195.79,195.78,13.59559401]
[1756765228804,0.69000001,195.79,195.78,17.37786487]
[1756765229008,0.69000001,195.79,195.78,13.59559401]
[1756765230224,0.72000001,195.79,195.78,13.59559401]
[1756765231025,0.72000001,195.79,195.78,18.70336804]
[1756765231227,0.72000001,195.79,195.78,22.4856389]
[1756765231531,0.72000001,195.79,195.78,13.59559401]
[1756765231756,0.72000001,195.79,195.78,22.4856389]
[1756765232260,0.72000001,195.79,195.78,18.70336804]
[1756765232426,0.72000001,195.79,195.78,13.59559401]
[1756765232759,0.72000001,195.79,195.75,2.047659]
[1756765232962,0.69,195.78,195.75,2.047659]
[1756765233120,0.69,195.77,195.75,13.59559401]
[1756765233321,0.69,195.76,195.66,2.047764]
[1756765233549,0.69,195.75,195.67,58.81559401]
[1756765233754,0.69,195.74,195.67,45.22]
[1756765234057,0.69,195.73,195.7,13.59559401]
[1756765234258,0.69,195.73,195.71,13.59559401]
[1756765234424,26.03000001,195.79,195.67,17.37786487]
[1756765234425,0.69,195.72,195.67,17.37786487]
[1756765234627,0.69,195.72,195.71,3.78227086]
[1756765234829,0.69,195.72,195.71,17.37786487]
[1756765235653,0.69,195.72,195.71,13.59559401]
[1756765236247,0.69,195.72,195.69,13.59559401]
[1756765236460,0.68,195.71,195.69,13.59559401]
[1756765236659,0.68,195.7,195.69,13.59559401]
[1756765236953,0.68,195.7,195.68,45.16]
[1756765237133,0.68,195.69,195.66,13.59559401]
[1756765237332,0.68,195.68,195.66,13.59559401]
[1756765237534,5.10869067,195.75,195.66,13.59559401]
[1756765237727,0.68,195.67,195.65,45.08]
[1756765237925,0.68,195.66,195.65,45.08]
[1756765238131,0.68,195.66,195.65,13.59559401]
[1756765240353,0.68,195.66,195.65,18.70676191]
[1756765240656,0.68,195.7,195.65,19.62411727]
[1756765240953,0.68,195.69,195.65,64.64411727]
[1756765241157,0.68,195.69,195.65,58.61559401]
[1756765241359,0.68,195.69,195.65,64.64411727]
[1756765241731,0.68,195.69,195.65,69.75524443]
[1756765242044,0.68,195.69,195.65,64.64411727]
[1756765242246,0.68,195.68,195.65,58.61559401]
[1756765242646,0.68,195.67,195.65,58.61559401]
[1756765242849,0.68,195.66,195.62,15.366097]
[1756765243058,0.68,195.65,195.62,15.366097]
[1756765243356,0.68,195.64,195.62,13.59559401]
[1756765243558,0.68,195.63,195.62,13.59559401]
[1756765244951,0.68,195.63,195.62,18.70754575]
[1756765245835,0.68,195.63,195.62,13.59559401]
[1756765246655,0.68,195.63,195.58,15.488459]
[1756765246961,0.68,195.62,195.59,58.31559401]
[1756765247160,0.68,195.61,195.59,44.72]
[1756765247371,0.68,195.6,195.58,13.71559401]
[1756765247857,0.68,195.62,195.58,13.71559401]
[1756765248177,0.68,195.61,195.58,13.71559401]
[1756765248345,0.68,195.61,195.58,0.12]
[1756765250256,26.0,195.59,195.58,0.12]
[1756765250441,26.68,195.59,195.58,0.12]
[1756765250843,31.79273582,195.59,195.58,0.12]
[1756765251537,26.68,195.59,195.58,0.12]
[1756765251756,31.79273582,195.59,195.58,0.12]
[1756765251961,31.79273582,195.59,195.56,0.12]
[1756765252351,31.79273582,195.59,195.54,0.12]
[1756765252561,44.57457538,195.59,195.48,44.54]
[1756765252864,0.68,195.58,195.48,44.54]
[1756765253179,0.68,195.58,195.45,0.2]
[1756765253180,0.68,195.57,195.45,13.79559401]
[1756765253347,26.0,195.55,195.45,0.2]
[1756765253669,0.68,195.56,195.45,0.2]
[1756765253670,26.0,195.53,195.45,0.2]
[1756765253849,0.68,195.52,195.45,0.2]
[1756765254756,31.79470977,195.52,195.45,0.2]
[1756765255363,26.68,195.52,195.45,5.31638381]
[1756765255572,0.68,195.51,195.45,5.31638381]
[1756765255774,0.68,195.5,195.45,0.2]
[1756765256067,0.68,195.49,195.45,0.2]
[1756765256277,0.68,195.48,195.45,0.2]
[1756765257157,26.0,195.52,195.45,5.31638254]
[1756765257340,0.68,195.5,195.45,5.31638254]
[1756765257954,0.68,195.49,195.45,0.2]
[1756765258166,0.68,195.48,195.45,0.2]
[1756765258751,31.11482364,195.52,195.45,0.2]
[1756765259083,0.68,195.51,195.45,5.31632099]
[1756765259972,0.68,195.5,195.45,0.2]
[1756765260271,26.68,195.49,195.45,0.2]
[1756765261056,26.0,195.49,195.45,0.2]
[1756765261262,0.68,195.48,195.45,0.2]
[1756765261470,0.68,195.47,195.45,0.2]
[1756765261775,26.0,195.49,195.45,0.2]
[1756765262070,0.68,195.46,195.45,0.2]
[1756765262282,26.0,195.51,195.45,0.2]
[1756765262582,0.68,195.48,195.45,0.2]
[1756765262783,0.68,195.47,195.45,0.2]
[1756765263464,5.11513372,195.5,195.45,0.2]
[1756765263653,0.68,195.46,195.45,0.2]
[1756765264158,0.68,195.48,195.45,0.2]
[1756765264366,26.0,195.5,195.45,0.2]
[1756765264680,0.68,195.49,195.45,0.2]
[1756765265574,0.69,195.48,195.45,0.2]
[1756765265952,0.69,195.48,195.45,5.31634399]
[1756765266156,0.69,195.52,195.46,13.59559401]
[1756765266457,0.69,195.51,195.46,13.59559401]
[1756765266671,0.69,195.5,195.46,13.59559401]
[1756765266859,0.69,195.52,195.47,5.11587455]
[1756765267057,0.69,195.51,195.47,5.11587455]
[1756765267255,133.8,195.55,195.47,5.11587455]
[1756765267555,0.69,195.53,195.47,5.11587455]
[1756765267754,0.69,195.52,195.47,5.11587455]
[1756765267957,0.69,195.51,195.47,5.11587455]
[1756765268273,0.69,195.5,195.45,0.2]
[1756765268475,0.69,195.49,195.46,13.59559401]
[1756765268855,0.69,195.51,195.46,13.59559401]
[1756765270373,0.69,195.5,195.46,13.59559401]